[Event "GrandPrix_29.05"]
[Site "Chess.com"]
[Date "2020.05.29"]
[Round "8"]
[White "benko_008"]
[Black "Malysch"]
[Result "0-1"]
[WhiteElo "2122"]
[BlackElo "2353"]
[TimeControl "600+2"]
[EndTime "13:05:09 PDT"]
[Termination "Malysch won on time"]

1. d4 {[%clk 0:10:01.9]} 1... Nf6 {[%clk 0:10:01.4]} 2. Nf3 {[%clk 0:10:02.1]}
2... c5 {[%clk 0:10:01.6]} 3. e3 {[%clk 0:10:02.4]} 3... b6 {[%clk 0:10:02.1]}
4. Bd3 {[%clk 0:10:01.2]} 4... Bb7 {[%clk 0:10:02.6]} 5. O-O {[%clk 0:10:01]}
5... g6 {[%clk 0:10:01.8]} 6. b3 {[%clk 0:09:56.7]} 6... Bg7 {[%clk 0:10:01.8]}
7. Bb2 {[%clk 0:09:57.7]} 7... O-O {[%clk 0:10:01.7]} 8. c4 {[%clk 0:09:53.3]}
8... cxd4 {[%clk 0:10:01.3]} 9. Bxd4 {[%clk 0:09:21.3]} 9... Nc6 {[%clk
0:09:59.6]} 10. Bb2 {[%clk 0:09:20.6]} 10... d5 {[%clk 0:09:45.8]} 11. cxd5
{[%clk 0:09:01.1]} 11... Nxd5 {[%clk 0:09:30.7]} 12. Bxg7 {[%clk 0:08:59.3]}
12... Kxg7 {[%clk 0:09:32.6]} 13. a3 {[%clk 0:08:58.6]} 13... Rc8 {[%clk
0:09:26.3]} 14. Ra2 {[%clk 0:08:54.5]} 14... e5 {[%clk 0:08:30.2]} 15. Qe2
{[%clk 0:08:06.5]} 15... Qe7 {[%clk 0:08:27.9]} 16. Nfd2 {[%clk 0:07:00.4]}
16... Rfd8 {[%clk 0:08:18.6]} 17. Rc2 {[%clk 0:06:41]} 17... Nd4 {[%clk
0:04:46.9]} 18. exd4 {[%clk 0:06:23]} 18... Nf4 {[%clk 0:04:47.3]} 19. Qxe5+
{[%clk 0:06:12]} 19... Qxe5 {[%clk 0:04:45.3]} 20. dxe5 {[%clk 0:06:13.9]} 20...
Nxd3 {[%clk 0:04:43.7]} 21. Rxc8 {[%clk 0:06:04.6]} 21... Rxc8 {[%clk
0:04:45.6]} 22. Nc4 {[%clk 0:05:41.4]} 22... Rc5 {[%clk 0:04:12]} 23. f4 {[%clk
0:05:07.4]} 23... b5 {[%clk 0:04:12]} 24. Ne3 {[%clk 0:05:02.2]} 24... Rc1
{[%clk 0:03:45.3]} 25. g3 {[%clk 0:04:28.7]} 25... g5 {[%clk 0:02:57.1]} 26.
Rxc1 {[%clk 0:03:00.5]} 26... Nxc1 {[%clk 0:02:59]} 27. Nc3 {[%clk 0:03:01.2]}
27... gxf4 {[%clk 0:02:34.7]} 28. gxf4 {[%clk 0:03:03.1]} 28... Nd3 {[%clk
0:02:03.8]} 29. Ne2 {[%clk 0:03:02.9]} 29... Kg6 {[%clk 0:01:50.7]} 30. Kf1
{[%clk 0:02:38.4]} 30... a5 {[%clk 0:01:30]} 31. f5+ {[%clk 0:01:38.2]} 31...
Kg5 {[%clk 0:01:26.2]} 32. h4+ {[%clk 0:01:32.9]} 32... Kxh4 {[%clk 0:01:20.3]}
33. e6 {[%clk 0:01:33.9]} 33... fxe6 {[%clk 0:01:21]} 34. f6 {[%clk 0:01:28.8]}
34... Ne5 {[%clk 0:01:14.9]} 35. Nd4 {[%clk 0:01:19.3]} 35... Kg5 {[%clk
0:00:57.7]} 36. Nxe6+ {[%clk 0:01:12.6]} 36... Kxf6 {[%clk 0:00:57.4]} 37. Nc5
{[%clk 0:01:11.4]} 37... Bc6 {[%clk 0:00:55.6]} 38. Kf2 {[%clk 0:01:04.2]} 38...
h5 {[%clk 0:00:54.5]} 39. Kg3 {[%clk 0:01:04.8]} 39... Kg5 {[%clk 0:00:45.4]}
40. Ne6+ {[%clk 0:01:04.6]} 40... Kf6 {[%clk 0:00:46]} 41. Nf4 {[%clk
0:00:59.1]} 41... Be8 {[%clk 0:00:39.3]} 42. Kh4 {[%clk 0:00:51.8]} 42... Nf3+
{[%clk 0:00:31.4]} 43. Kg3 {[%clk 0:00:51.5]} 43... Nd4 {[%clk 0:00:31.8]} 44.
Ned5+ {[%clk 0:00:37.6]} 44... Ke5 {[%clk 0:00:29.8]} 45. Nc7 {[%clk 0:00:27.4]}
45... Bd7 {[%clk 0:00:25]} 46. Nd3+ {[%clk 0:00:22.5]} 46... Kd6 {[%clk
0:00:21.7]} 47. Na6 {[%clk 0:00:18.1]} 47... Nxb3 {[%clk 0:00:21.5]} 48. Kh4
{[%clk 0:00:18.6]} 48... Be8 {[%clk 0:00:21.3]} 49. Kg5 {[%clk 0:00:16.5]} 49...
Nd4 {[%clk 0:00:21.3]} 50. Nac5 {[%clk 0:00:15.3]} 50... b4 {[%clk 0:00:18.7]}
51. axb4 {[%clk 0:00:15.1]} 51... axb4 {[%clk 0:00:20.6]} 52. Ne4+ {[%clk
0:00:13.6]} 52... Kc6 {[%clk 0:00:19.1]} 53. Nxb4+ {[%clk 0:00:13.6]} 53... Kb5
{[%clk 0:00:19.7]} 54. Nd3 {[%clk 0:00:12.7]} 54... Kc4 {[%clk 0:00:20.3]} 55.
Nf4 {[%clk 0:00:12.2]} 55... Nf3+ {[%clk 0:00:20.3]} 56. Kf6 {[%clk 0:00:10.4]}
56... Kd4 {[%clk 0:00:20.5]} 57. Nd6 {[%clk 0:00:10.3]} 57... Ke3 {[%clk
0:00:20]} 0-1

[Event "GrandPrix_29.05"]
[Site "Chess.com"]
[Date "2020.05.29"]
[Round "8"]
[White "Keks2017"]
[Black "SuperFineHipster"]
[Result "1-0"]
[WhiteElo "2368"]
[BlackElo "2157"]
[TimeControl "600+2"]
[EndTime "13:05:24 PDT"]
[Termination "Keks2017 won by resignation"]

1. g3 {[%clk 0:09:59]} 1... e5 {[%clk 0:09:57.8]} 2. Bg2 {[%clk 0:09:59.1]} 2...
d5 {[%clk 0:09:57.2]} 3. d3 {[%clk 0:09:59.7]} 3... Nc6 {[%clk 0:09:57.7]} 4.
Nf3 {[%clk 0:09:59.2]} 4... Nf6 {[%clk 0:09:55.3]} 5. O-O {[%clk 0:09:59.4]}
5... Be7 {[%clk 0:09:53.6]} 6. c3 {[%clk 0:10:00.1]} 6... a5 {[%clk 0:09:54.1]}
7. Qc2 {[%clk 0:10:00.7]} 7... O-O {[%clk 0:09:54.4]} 8. Nbd2 {[%clk 0:10:01.3]}
8... b6 {[%clk 0:09:34.8]} 9. b3 {[%clk 0:10:01.3]} 9... Ba6 {[%clk 0:09:31.2]}
10. Re1 {[%clk 0:09:59.1]} 10... Qd7 {[%clk 0:09:27.7]} 11. a3 {[%clk
0:09:59.7]} 11... Rfe8 {[%clk 0:09:26.2]} 12. Bb2 {[%clk 0:09:59.7]} 12... Bf8
{[%clk 0:09:21.7]} 13. e4 {[%clk 0:09:27.2]} 13... dxe4 {[%clk 0:09:08.3]} 14.
dxe4 {[%clk 0:09:26.7]} 14... Rad8 {[%clk 0:08:54.7]} 15. Bf1 {[%clk 0:09:20.2]}
15... Bxf1 {[%clk 0:08:52.1]} 16. Nxf1 {[%clk 0:09:20.1]} 16... Qd3 {[%clk
0:08:50.5]} 17. Qxd3 {[%clk 0:09:18.9]} 17... Rxd3 {[%clk 0:08:52.4]} 18. Kg2
{[%clk 0:09:17.1]} 18... Red8 {[%clk 0:08:50.6]} 19. Re2 {[%clk 0:09:04.9]}
19... b5 {[%clk 0:08:41.5]} 20. b4 {[%clk 0:08:55.6]} 20... Nd7 {[%clk
0:08:33.7]} 21. Rd2 {[%clk 0:08:46.5]} 21... Nb6 {[%clk 0:08:30.3]} 22. Rad1
{[%clk 0:08:44.7]} 22... Rxd2 {[%clk 0:08:16.7]} 23. Rxd2 {[%clk 0:08:44.4]}
23... Ra8 {[%clk 0:07:18.2]} 24. Ne3 {[%clk 0:08:39.9]} 24... g6 {[%clk
0:07:17.4]} 25. Rd1 {[%clk 0:08:27.5]} 25... Bh6 {[%clk 0:07:13.2]} 26. Nd5
{[%clk 0:08:07.8]} 26... Nc4 {[%clk 0:07:12.6]} 27. Bc1 {[%clk 0:08:02.7]} 27...
Bxc1 {[%clk 0:07:06]} 28. Rxc1 {[%clk 0:08:02.6]} 28... Nxa3 {[%clk 0:06:33.8]}
29. bxa5 {[%clk 0:07:54.6]} 29... Nxa5 {[%clk 0:04:31.6]} 30. Nxe5 {[%clk
0:07:39]} 30... Nb3 {[%clk 0:04:26]} 31. Rd1 {[%clk 0:07:30.3]} 31... c5 {[%clk
0:04:26.4]} 32. Nc7 {[%clk 0:06:06.9]} 32... Rc8 {[%clk 0:03:55.9]} 33. Rd7
{[%clk 0:05:59.4]} 33... b4 {[%clk 0:03:37.9]} 34. Nd5 {[%clk 0:03:59]} 34...
Rf8 {[%clk 0:03:38.1]} 35. cxb4 {[%clk 0:03:45.8]} 35... cxb4 {[%clk 0:03:38.7]}
36. Nxb4 {[%clk 0:03:41.3]} 36... Nc5 {[%clk 0:03:33.4]} 37. Ra7 {[%clk
0:03:31.3]} 37... Nb1 {[%clk 0:03:30.9]} 38. f3 {[%clk 0:03:22.5]} 38... Nd2
{[%clk 0:03:27.8]} 39. Nd5 {[%clk 0:03:17.3]} 39... Ndb3 {[%clk 0:03:09.4]} 40.
Kf2 {[%clk 0:03:11.7]} 40... Ne6 {[%clk 0:03:04.6]} 41. Ke3 {[%clk 0:03:09.3]}
41... Nbd4 {[%clk 0:02:41.2]} 42. Nf4 {[%clk 0:02:06.7]} 42... Nxf4 {[%clk
0:01:20.5]} 43. gxf4 {[%clk 0:01:57.6]} 43... Ne6 {[%clk 0:01:21.3]} 44. Ng4
{[%clk 0:01:34.8]} 44... h5 {[%clk 0:01:14.7]} 45. Ne5 {[%clk 0:01:31.8]} 45...
Kg7 {[%clk 0:01:01.4]} 46. f5 {[%clk 0:01:25.1]} 46... gxf5 {[%clk 0:01:02.7]}
47. exf5 {[%clk 0:01:24.8]} 47... Ng5 {[%clk 0:01:02.2]} 48. f6+ {[%clk
0:00:55.2]} 48... Kg8 {[%clk 0:00:50.7]} 49. Kf4 {[%clk 0:00:46.4]} 49... Ne6+
{[%clk 0:00:44.6]} 50. Kf5 {[%clk 0:00:46.3]} 50... Nd4+ {[%clk 0:00:29]} 51.
Kg5 {[%clk 0:00:46.3]} 51... Re8 {[%clk 0:00:28.5]} 52. Nxf7 {[%clk 0:00:35.6]}
52... Nxf3+ {[%clk 0:00:27.8]} 53. Kxh5 {[%clk 0:00:36.3]} 53... Rf8 {[%clk
0:00:15.6]} 54. Nh6+ {[%clk 0:00:22.1]} 54... Kh8 {[%clk 0:00:16.7]} 55. Kg6
{[%clk 0:00:19.2]} 55... Ne5+ {[%clk 0:00:16.9]} 56. Kf5 {[%clk 0:00:19.4]}
56... Nf3 {[%clk 0:00:16.7]} 57. Nf7+ {[%clk 0:00:18.9]} 57... Kg8 {[%clk
0:00:17.3]} 58. Ng5 {[%clk 0:00:19.7]} 58... Nxg5 {[%clk 0:00:08.4]} 59. Kxg5
{[%clk 0:00:20.2]} 59... Kh8 {[%clk 0:00:09.7]} 60. Kg6 {[%clk 0:00:19.7]} 60...
Rg8+ {[%clk 0:00:10.1]} 61. Rg7 {[%clk 0:00:19.8]} 61... Rf8 {[%clk 0:00:04.9]}
62. Rh7+ {[%clk 0:00:19.6]} 62... Kg8 {[%clk 0:00:06.2]} 63. f7+ {[%clk
0:00:20]} 1-0

[Event "GrandPrix_29.05"]
[Site "Chess.com"]
[Date "2020.05.29"]
[Round "8"]
[White "NikolaN98"]
[Black "Thor736"]
[Result "1-0"]
[WhiteElo "2268"]
[BlackElo "2051"]
[TimeControl "600+2"]
[EndTime "13:05:27 PDT"]
[Termination "NikolaN98 won by resignation"]

1. e4 {[%clk 0:09:58.8]} 1... c5 {[%clk 0:10:00.8]} 2. Nc3 {[%clk 0:09:58.2]}
2... d6 {[%clk 0:09:59.9]} 3. f4 {[%clk 0:09:58.8]} 3... g6 {[%clk 0:10:00.1]}
4. Nf3 {[%clk 0:10:00]} 4... Bg7 {[%clk 0:10:01.1]} 5. Bb5+ {[%clk 0:10:01.1]}
5... Bd7 {[%clk 0:10:02.1]} 6. Bc4 {[%clk 0:10:02.5]} 6... Nc6 {[%clk
0:10:02.3]} 7. O-O {[%clk 0:10:03.1]} 7... Na5 {[%clk 0:10:03.4]} 8. Be2 {[%clk
0:09:58.7]} 8... Nf6 {[%clk 0:10:04.2]} 9. d3 {[%clk 0:09:58.9]} 9... Nc6 {[%clk
0:10:04.2]} 10. Qe1 {[%clk 0:09:59.7]} 10... O-O {[%clk 0:09:23.7]} 11. Qh4
{[%clk 0:09:51.2]} 11... Nd4 {[%clk 0:09:03.5]} 12. Nxd4 {[%clk 0:09:46.7]}
12... cxd4 {[%clk 0:09:04.2]} 13. Nb1 {[%clk 0:09:47.8]} 13... Rc8 {[%clk
0:08:50.6]} 14. Bd1 {[%clk 0:09:47.9]} 14... e6 {[%clk 0:08:03.9]} 15. Nd2
{[%clk 0:09:46.1]} 15... Nh5 {[%clk 0:07:11.6]} 16. Qe1 {[%clk 0:07:44.1]} 16...
f5 {[%clk 0:07:07.5]} 17. exf5 {[%clk 0:07:38.1]} 17... exf5 {[%clk 0:06:57]}
18. Nf3 {[%clk 0:07:16.1]} 18... Re8 {[%clk 0:05:38.4]} 19. Qb4 {[%clk
0:07:07.6]} 19... Qb6 {[%clk 0:05:24.4]} 20. Qxb6 {[%clk 0:06:29.1]} 20... axb6
{[%clk 0:05:23.4]} 21. Bd2 {[%clk 0:05:58.7]} 21... Bf6 {[%clk 0:04:35.7]} 22.
g3 {[%clk 0:05:46]} 22... Ng7 {[%clk 0:04:20.8]} 23. Bb4 {[%clk 0:05:44]} 23...
d5 {[%clk 0:04:01.3]} 24. Bd6 {[%clk 0:05:25.8]} 24... Ne6 {[%clk 0:03:21.1]}
25. Be5 {[%clk 0:05:12]} 25... Bxe5 {[%clk 0:03:21.2]} 26. Nxe5 {[%clk
0:05:12.2]} 26... Rc7 {[%clk 0:03:19.4]} 27. Rf2 {[%clk 0:04:27.3]} 27... Rec8
{[%clk 0:03:13.8]} 28. Rc1 {[%clk 0:04:14.2]} 28... Nc5 {[%clk 0:03:06.1]} 29.
Bf3 {[%clk 0:04:06.4]} 29... Be6 {[%clk 0:03:04.3]} 30. Re1 {[%clk 0:04:01.3]}
30... Re7 {[%clk 0:02:14.5]} 31. b3 {[%clk 0:03:43.6]} 31... Na6 {[%clk
0:02:05.8]} 32. a3 {[%clk 0:03:40.9]} 32... Nb8 {[%clk 0:02:01.5]} 33. Rfe2
{[%clk 0:03:18.1]} 33... Rce8 {[%clk 0:01:58.4]} 34. Bg2 {[%clk 0:03:08.1]}
34... Nc6 {[%clk 0:01:54.6]} 35. Nf3 {[%clk 0:03:04]} 35... Kf8 {[%clk
0:01:51.7]} 36. Kf2 {[%clk 0:02:57.6]} 36... Bf7 {[%clk 0:01:36.8]} 37. Rxe7
{[%clk 0:01:38.8]} 37... Rxe7 {[%clk 0:01:37]} 38. Rxe7 {[%clk 0:01:39.7]} 38...
Kxe7 {[%clk 0:01:38.6]} 39. Ke2 {[%clk 0:01:41.2]} 39... Kd6 {[%clk 0:01:21.9]}
40. Kd2 {[%clk 0:01:41.5]} 40... h6 {[%clk 0:01:18.4]} 41. Kc1 {[%clk
0:01:41.1]} 41... Ke7 {[%clk 0:00:45.3]} 42. Kb2 {[%clk 0:01:41.1]} 42... Kf6
{[%clk 0:00:46.2]} 43. h4 {[%clk 0:01:39.7]} 43... b5 {[%clk 0:00:38.5]} 44. c3
{[%clk 0:01:19.8]} 44... dxc3+ {[%clk 0:00:33.2]} 45. Kxc3 {[%clk 0:01:21.7]}
45... Ke6 {[%clk 0:00:18.4]} 46. Nd4+ {[%clk 0:01:12.1]} 46... Nxd4 {[%clk
0:00:18.6]} 47. Kxd4 {[%clk 0:01:14]} 47... Kd6 {[%clk 0:00:20.1]} 48. Bf3
{[%clk 0:01:14.3]} 48... b6 {[%clk 0:00:18.1]} 49. Bd1 {[%clk 0:01:14]} 49...
Be6 {[%clk 0:00:16.3]} 50. h5 {[%clk 0:01:11.7]} 50... gxh5 {[%clk 0:00:13.6]}
51. Bxh5 {[%clk 0:01:12.4]} 51... Bd7 {[%clk 0:00:07.7]} 52. Bf7 {[%clk
0:01:11.2]} 52... Be6 {[%clk 0:00:06.9]} 53. Bxe6 {[%clk 0:00:39]} 53... Kxe6
{[%clk 0:00:08.2]} 54. Kc3 {[%clk 0:00:39.9]} 54... Kd6 {[%clk 0:00:09.3]} 55.
Kb4 {[%clk 0:00:41.1]} 55... Kc6 {[%clk 0:00:10.6]} 56. d4 {[%clk 0:00:42.5]}
56... h5 {[%clk 0:00:11.9]} 57. a4 {[%clk 0:00:44]} 57... bxa4 {[%clk
0:00:11.3]} 58. bxa4 {[%clk 0:00:45.9]} 58... Kb7 {[%clk 0:00:03.6]} 59. Kb5
{[%clk 0:00:46.4]} 59... Kc7 {[%clk 0:00:03.2]} 60. a5 {[%clk 0:00:40.6]} 60...
bxa5 {[%clk 0:00:04.5]} 61. Kxa5 {[%clk 0:00:42.5]} 61... Kc6 {[%clk 0:00:03.3]}
62. Ka6 {[%clk 0:00:43.4]} 62... Kc7 {[%clk 0:00:03.3]} 63. Kb5 {[%clk
0:00:43.3]} 63... Kd6 {[%clk 0:00:04.1]} 64. Kb6 {[%clk 0:00:44.1]} 64... Kd7
{[%clk 0:00:05]} 65. Kc5 {[%clk 0:00:44.9]} 65... Ke6 {[%clk 0:00:06.8]} 66. Kc6
{[%clk 0:00:46.1]} 66... Kf6 {[%clk 0:00:05.9]} 67. Kxd5 {[%clk 0:00:47]} 1-0

[Event "GrandPrix_29.05"]
[Site "Chess.com"]
[Date "2020.05.29"]
[Round "8"]
[White "Logman74"]
[Black "DaviD-GevorG"]
[Result "1/2-1/2"]
[WhiteElo "2102"]
[BlackElo "1849"]
[TimeControl "600+2"]
[EndTime "13:05:27 PDT"]
[Termination "Game drawn - insufficient material"]

1. e4 {[%clk 0:10:01.9]} 1... g6 {[%clk 0:10:00.7]} 2. d4 {[%clk 0:10:01.1]}
2... Bg7 {[%clk 0:10:01.8]} 3. Nc3 {[%clk 0:10:01.1]} 3... d6 {[%clk 0:10:02.9]}
4. f4 {[%clk 0:10:01.4]} 4... a6 {[%clk 0:10:02.9]} 5. Nf3 {[%clk 0:10:02.1]}
5... b5 {[%clk 0:10:03.9]} 6. Bd3 {[%clk 0:10:03.1]} 6... e6 {[%clk 0:10:02.7]}
7. O-O {[%clk 0:10:01.9]} 7... Ne7 {[%clk 0:10:03.5]} 8. Kh1 {[%clk 0:09:55.8]}
8... O-O {[%clk 0:10:03.9]} 9. e5 {[%clk 0:09:55.1]} 9... Bb7 {[%clk 0:09:59.9]}
10. Be4 {[%clk 0:09:55]} 10... Bxe4 {[%clk 0:09:59.9]} 11. Nxe4 {[%clk
0:09:54.7]} 11... h5 {[%clk 0:09:30.5]} 12. Nfg5 {[%clk 0:09:48.6]} 12... Nbc6
{[%clk 0:08:41.8]} 13. Be3 {[%clk 0:09:43.2]} 13... Nf5 {[%clk 0:08:34.1]} 14.
Bg1 {[%clk 0:09:34.9]} 14... dxe5 {[%clk 0:08:24.8]} 15. dxe5 {[%clk 0:09:32]}
15... Qxd1 {[%clk 0:08:23]} 16. Rfxd1 {[%clk 0:09:31.5]} 16... Rfd8 {[%clk
0:08:12.3]} 17. Nc5 {[%clk 0:09:22.1]} 17... Bf8 {[%clk 0:07:14.3]} 18. Rxd8
{[%clk 0:09:14.3]} 18... Nxd8 {[%clk 0:07:09]} 19. Rd1 {[%clk 0:09:13.3]} 19...
Bxc5 {[%clk 0:07:05.8]} 20. Bxc5 {[%clk 0:09:12]} 20... Nb7 {[%clk 0:07:07.4]}
21. Bf2 {[%clk 0:09:08.6]} 21... Rd8 {[%clk 0:07:07.4]} 22. Rxd8+ {[%clk
0:09:08.1]} 22... Nxd8 {[%clk 0:07:09.3]} 23. h3 {[%clk 0:09:06.6]} 23... Nc6
{[%clk 0:06:31.9]} 24. c3 {[%clk 0:08:59.2]} 24... Nce7 {[%clk 0:06:07.7]} 25.
g4 {[%clk 0:08:54.2]} 25... hxg4 {[%clk 0:06:06.8]} 26. hxg4 {[%clk 0:08:51.6]}
26... Nh6 {[%clk 0:06:06.6]} 27. Kg2 {[%clk 0:08:50.4]} 27... Nxg4 {[%clk
0:06:01.2]} 28. Bc5 {[%clk 0:08:51.8]} 28... Nd5 {[%clk 0:05:55.3]} 29. Kf3
{[%clk 0:08:49.3]} 29... Nh2+ {[%clk 0:04:48]} 30. Kg2 {[%clk 0:08:48.3]} 30...
Ng4 {[%clk 0:04:48.3]} 31. Kf3 {[%clk 0:08:40.4]} 31... Nh6 {[%clk 0:04:48.4]}
32. Ne4 {[%clk 0:08:38]} 32... Kg7 {[%clk 0:04:31.3]} 33. Bf2 {[%clk 0:08:32.6]}
33... Nf5 {[%clk 0:04:28.1]} 34. Nc5 {[%clk 0:08:23.4]} 34... a5 {[%clk
0:04:28.1]} 35. a4 {[%clk 0:08:14.4]} 35... bxa4 {[%clk 0:03:47.5]} 36. Nxa4
{[%clk 0:08:12.3]} 36... g5 {[%clk 0:03:48.7]} 37. fxg5 {[%clk 0:08:07.7]} 37...
Kg6 {[%clk 0:03:49.8]} 38. c4 {[%clk 0:08:05.8]} 38... Nb4 {[%clk 0:03:46]} 39.
Nc5 {[%clk 0:07:55.7]} 39... Kxg5 {[%clk 0:03:23.3]} 40. Be1 {[%clk 0:07:50]}
40... Nc6 {[%clk 0:00:53]} 41. Ke4 {[%clk 0:07:39]} 41... Nfd4 {[%clk
0:00:27.4]} 42. Na6 {[%clk 0:07:20.5]} 42... Nb3 {[%clk 0:00:26.6]} 43. Nxc7
{[%clk 0:07:18.5]} 43... Nc5+ {[%clk 0:00:25.3]} 44. Ke3 {[%clk 0:07:19]} 44...
Nxe5 {[%clk 0:00:20.7]} 45. Kd4 {[%clk 0:07:15.4]} 45... Ned7 {[%clk 0:00:21.5]}
46. Ke3 {[%clk 0:06:39.9]} 46... a4 {[%clk 0:00:18.4]} 47. Bb4 {[%clk
0:06:35.7]} 47... e5 {[%clk 0:00:10.5]} 48. Nb5 {[%clk 0:06:29.9]} 48... f5
{[%clk 0:00:09.3]} 49. Ba5 {[%clk 0:06:14.2]} 49... f4+ {[%clk 0:00:09.6]} 50.
Kf2 {[%clk 0:06:09.8]} 50... e4 {[%clk 0:00:10.6]} 51. Nd4 {[%clk 0:06:05.7]}
51... Kg4 {[%clk 0:00:09.6]} 52. Bc7 {[%clk 0:05:58]} 52... e3+ {[%clk
0:00:09.5]} 53. Ke2 {[%clk 0:05:58.4]} 53... Ne4 {[%clk 0:00:03.8]} 54. Nc2
{[%clk 0:05:44.8]} 54... Ng3+ {[%clk 0:00:04.7]} 55. Kd3 {[%clk 0:05:45.5]}
55... Nc5+ {[%clk 0:00:03.5]} 56. Kc3 {[%clk 0:05:39.4]} 56... Ne6 {[%clk
0:00:04.6]} 57. Bb6 {[%clk 0:05:36.4]} 57... Kf3 {[%clk 0:00:05.6]} 58. c5
{[%clk 0:05:33.2]} 58... Ne4+ {[%clk 0:00:06.4]} 59. Kc4 {[%clk 0:05:20.3]}
59... e2 {[%clk 0:00:02.8]} 60. c6 {[%clk 0:05:18.3]} 60... Kg2 {[%clk
0:00:03.1]} 61. Kd3 {[%clk 0:05:10.3]} 61... f3 {[%clk 0:00:04.3]} 62. Ne1+
{[%clk 0:04:54.8]} 62... Kg3 {[%clk 0:00:04.2]} 63. Kxe4 {[%clk 0:04:51.2]}
63... f2 {[%clk 0:00:04.3]} 64. Bxf2+ {[%clk 0:04:48.9]} 64... Kxf2 {[%clk
0:00:06.2]} 65. Nd3+ {[%clk 0:04:46.5]} 65... Kf1 {[%clk 0:00:06.4]} 66. Kd5
{[%clk 0:04:43.1]} 66... Nf4+ {[%clk 0:00:07.4]} 67. Nxf4 {[%clk 0:03:55.3]}
67... e1=Q {[%clk 0:00:07.5]} 68. c7 {[%clk 0:03:55.6]} 68... Qe8 {[%clk
0:00:08.2]} 69. Kd6 {[%clk 0:03:30.8]} 69... Qc8 {[%clk 0:00:04.1]} 70. Nd5
{[%clk 0:03:29.7]} 70... Ke1 {[%clk 0:00:03.4]} 71. Ne7 {[%clk 0:03:24.3]} 71...
Qa6+ {[%clk 0:00:04.2]} 72. Kc5 {[%clk 0:03:13]} 72... Qa5+ {[%clk 0:00:04.4]}
73. Kc6 {[%clk 0:03:09.4]} 73... Qa6+ {[%clk 0:00:04.5]} 74. Kd7 {[%clk
0:03:08.3]} 74... Qb5+ {[%clk 0:00:04.1]} 75. Kd8 {[%clk 0:03:04.5]} 75... Qb6
{[%clk 0:00:04.7]} 76. Kd7 {[%clk 0:03:01.7]} 76... Qb5+ {[%clk 0:00:06]} 77.
Kd6 {[%clk 0:03:01.3]} 77... Qb6+ {[%clk 0:00:05.1]} 78. Nc6 {[%clk 0:02:59.5]}
78... Qa6 {[%clk 0:00:05.8]} 79. Kd7 {[%clk 0:02:53.2]} 79... Qd3+ {[%clk
0:00:06.6]} 80. Ke8 {[%clk 0:02:51.6]} 80... Qg6+ {[%clk 0:00:04.4]} 81. Kd7
{[%clk 0:02:48.1]} 81... Qf5+ {[%clk 0:00:05.5]} 82. Kd6 {[%clk 0:02:47.1]}
82... Qf8+ {[%clk 0:00:05]} 83. Ne7 {[%clk 0:02:45.1]} 83... Kd2 {[%clk
0:00:03.7]} 84. c8=Q {[%clk 0:02:16.9]} 84... Qxc8 {[%clk 0:00:04.7]} 85. Nxc8
{[%clk 0:02:17.1]} 85... Kc2 {[%clk 0:00:06]} 86. Nb6 {[%clk 0:02:18.3]} 86...
Kxb2 {[%clk 0:00:06.9]} 87. Nxa4+ {[%clk 0:02:18.9]} 1/2-1/2